Cogmind - Beta 13 *** ADVENTURER MODE // 2024.04.05 @ 19:53:05 Player: Nexusuxen Result: Destroyed by S-27 Virus with Autogun Performance ------------- Evolutions (5) 2500 Regions Visited (16) 3200 Robots Destroyed (128) 640 Value Destroyed (3211) 3211 Prototype IDs (27) 540 Alien Tech Used (0) 0 Bonus (395) 395 TOTAL SCORE: 10486 Bonus ------- High Alert Combat Kills 88 Follower Combat Kills 7 Met Data Miner 300 Cogmind --------- Core Integrity 0/1000 Matter 232/300 Energy 59/100 System Corruption 2% Temperature Cool (0) Movement Core (50) Location -5/Upper Caves Parts ------- > --- POWER (2) -------- (None) > --- PROPULSION (6) --- (None) > --- UTILITY (7) ------ (None) > --- WEAPON (2) ------- (None) > --- INVENTORY (5) ---- Advanced Cooling System Triangulator Peak State ------------ > --- POWER ------------ Enhanced Nuclear Core Light Angular Momentum Engine > --- PROPULSION ------- Cesium-ion Thruster Xenon Bombardment Thruster Xenon Bombardment Thruster Cooled Field Propulsion Drive Cooled Field Propulsion Drive > --- UTILITY ---------- Improved Cooling System Triangulator Enhanced Optical Array 0b10 Decoder Chip [Scout] Experimental Transmission Jammer Hacking Suite > --- WEAPON ----------- Guided Micro-nuke Launcher > --- INVENTORY -------- Xenon Bombardment Thruster ECM Suite Force Field [Rating: 90] Favorites ----------- Power Light Nuclear Core Engine Light Angular Momentum Engine Power Core Light Nuclear Core Propulsion Xenon Bombardment Thruster Leg Aluminum Leg Wheel Armored Wheel Hover Unit Hover Unit Flight Unit Xenon Bombardment Thruster Utility Hacking Suite Device Weight Redist. System Storage Small Storage Unit Processor Visual Processing Unit Hackware Hacking Suite Protection Hardened Light Armor Plating Weapon Improved Assault Rifle Energy Gun Small Laser Energy Cannon Improved EM Pulse Cannon Ballistic Gun Improved Assault Rifle Launcher Smartbomb Launcher Special Weapon Improved Remote Datajack Special Melee Weapon Improved Datajack Build | -11 -10 -10 -9 -9 -9 -8 -8 -7 -6 -6 -6 -6 -5 -5 -5 -5 ------- Run | Yrd Mat Min Mat Min Exi Min Mat Fac Fac Low Low Dat Pro Fac Upp Upp Slots Evolved 10 | . . . 2 . . . 2 2 2 . . . . 2 . . Power 1 | . . . . . . . 1 . . . . . . . . . Propulsion 4 | . . . . . . . . 2 1 . . . . 1 . . Utility 5 | . . . 2 . . . 1 . 1 . . . . 1 . . Weapon . | . . . . . . . . . . . . . . . . . Parts Attached 181 | 7 12 . 45 1 . . 33 19 16 1 3 . 21 18 4 1 Power 34 | 2 1 . 8 . . . 4 9 7 . . . . 2 1 . Engine 22 | 2 1 . 8 . . . 2 3 5 . . . . . 1 . Core 12 | . . . . . . . 2 6 2 . . . . 2 . . Reactor . | . . . . . . . . . . . . . . . . . Propulsion 39 | 2 1 . 11 . . . 10 6 2 . 2 . 3 2 . . Treads . | . . . . . . . . . . . . . . . . . Leg 2 | 2 . . . . . . . . . . . . . . . . Wheel 5 | . . . 2 . . . 3 . . . . . . . . . Hover 8 | . . . 5 . . . 3 . . . . . . . . . Flight 24 | . 1 . 4 . . . 4 6 2 . 2 . 3 2 . . Utility 59 | 1 6 . 15 1 . . 15 . 6 . 1 . 8 4 2 . Device 43 | . 5 . 9 1 . . 11 . 6 . . . 6 4 1 . Storage 2 | 1 . . . . . . . . . . . . 1 . . . Processor 5 | . . . 2 . . . 1 . . . 1 . 1 . . . Hackware 1 | . . . . . . . 1 . . . . . . . . . Protection 8 | . 1 . 4 . . . 2 . . . . . . . 1 . Artifact . | . . . . . . . . . . . . . . . . . Weapon 49 | 2 4 . 11 . . . 4 4 1 1 . . 10 10 1 1 Energy Gun 16 | . 3 . 1 . . . . . 1 1 . . 3 6 . 1 Energy Cannon 1 | . . . . . . . . 1 . . . . . . . . Ballistic Gun 14 | 2 . . 7 . . . 3 2 . . . . . . . . Ballistic Cannon . | . . . . . . . . . . . . . . . . . Launcher 13 | . 1 . 3 . . . . . . . . . 5 3 1 . Special Weapon 1 | . . . . . . . . . . . . . . 1 . . Impact Weapon . | . . . . . . . . . . . . . . . . . Slashing Weapon . | . . . . . . . . . . . . . . . . . Piercing Weapon . | . . . . . . . . . . . . . . . . . Special Melee Weapon 4 | . . . . . . . 1 1 . . . . 2 . . . Unidentified Prototypes 13 | . . . 2 . . . 1 1 2 . . . 5 2 . . Parts Lost 47 | . 1 . 18 1 . . 2 1 . . 1 . 2 10 10 1 Power 7 | . . . 2 . . . . 1 . . . . . 3 1 . Propulsion 16 | . . . 6 1 . . 1 . . . 1 . 2 4 1 . Utility 16 | . 1 . 6 . . . 1 . . . . . . 1 7 . Weapon 8 | . . . 4 . . . . . . . . . . 2 1 1 Highest Loss Streak 9 | . 1 . 9 1 . . 1 1 . . 1 . 2 5 5 1 To Critical Strikes 1 | . . . . . . . . . . . . . . . . 1 Average Slot Usage (%) 75 | . 85 85 80 89 88 88 91 90 95 100 100 100 94 79 26 1 Engine 5 | . 14 14 10 11 11 11 6 . 6 6 6 6 6 . 2 . Core 5 | . . . . . . . 11 14 5 6 6 6 6 9 . . Leg 1 | . 18 . . . . . . . . . . . . . . . Hover 2 | . . . 10 11 11 11 4 . . . . . . . . . Flight 12 | . 4 14 3 . . . 11 26 30 33 33 33 30 19 . . Device 19 | . 8 28 26 22 22 22 22 23 23 26 24 20 20 22 9 . Processor 7 | . . . 6 11 11 11 9 7 6 6 7 13 13 11 6 . Hackware 4 | . . . . . . . 9 7 6 6 6 6 6 5 4 . Protection 1 | . . . 1 11 11 11 3 . . . . . . . 1 . Energy Gun 2 | . 8 28 1 . . . . . 5 6 6 6 4 6 . 1 Ballistic Gun 7 | . 19 . 17 22 22 22 13 4 . . . . . . . . Special Melee Weapon 1 | . . . . . . . . 2 6 6 6 6 3 . . . Naked Turns 31 | . . . . . . . . . . . . . . . 4 27 Heaviest Build 32 | 14 17 6 22 20 20 20 28 29 29 28 28 28 32 30 18 5 Greatest Support 36 | 20 20 10 18 18 12 12 21 30 36 30 30 29 31 32 10 3 Greatest Overweight (x) 5 | . 1 . 3 1 1 1 2 . . . . . 1 . 5 1 Average Overweight (x) . | . . . . 1 1 1 . . . . . . . . 1 . Largest Inventory Capacity 8 | 8 8 5 5 5 5 5 5 5 5 5 5 5 5 5 5 5 Average Capacity 5 | 6 7 5 5 5 5 5 5 5 5 5 5 5 5 5 5 5 Most Carried 8 | 2 8 5 5 5 5 5 5 5 5 5 5 5 5 5 5 3 Average Carried 4 | . 4 5 4 5 5 5 4 4 4 5 4 5 4 4 3 2 Final Capacity 8 | 8 5 5 5 5 5 5 5 5 5 5 5 5 5 5 5 5 Final Carried 5 | 1 5 5 5 5 5 5 5 4 5 5 5 5 4 5 3 2 Class Distribution -------------------- 36% | Hacker-Sprinter 26% | Hacker-Mutant 15% | Scavenger-Mutant 14% | Mutant 4% | Infiltrator-Sprinter Dominant Class ---------------- Mutant | -10/Materials Scavenger-Mutant | -10/Mines Scavenger-Mutant | -9/Materials Mutant | -9/Mines Mutant | -9/Exiles Mutant | -8/Mines Hacker-Sprinter | -8/Materials Hacker-Sprinter | -7/Factory Hacker-Sprinter | -6/Factory Hacker-Sprinter | -6/Lower Caves Hacker-Sprinter | -6/Lower Caves Hacker-Sprinter | -6/Data Miner Hacker-Sprinter | -5/Proximity Caves Infiltrator-Sprinter | -5/Factory Hacker-Mutant | -5/Upper Caves Mutant | -5/Upper Caves Resources | -11 -10 -10 -9 -9 -9 -8 -8 -7 -6 -6 -6 -6 -5 -5 -5 -5 ----------- Run | Yrd Mat Min Mat Min Exi Min Mat Fac Fac Low Low Dat Pro Fac Upp Upp Matter Collected 3703 | 223 412 9 702 52 . . 692 61 160 203 15 . 685 211 278 . Remotely . | . . . . . . . . . . . . . . . . . Salvage Created 4167 | . 494 . 1309 63 . . 883 66 105 . . . 337 835 75 . Parts 265 | . 33 . 96 8 . . 63 2 12 . . . 7 38 6 . Haulers Intercepted 10 | . 2 . 4 . . . 1 . . . . . . 3 . . Recyclers Shooed 2 | . . . 1 . . . 1 . . . . . . . . . Parts Field Recycled . | . . . . . . . . . . . . . . . . . Retrieved Matter . | . . . . . . . . . . . . . . . . . Parts Self-Destructed 19 | . . . . . . . . . . . 5 . 5 . 9 . Prevented 3 | . . . . . . . . . . . 2 . . . 1 . Kills | -11 -10 -10 -9 -9 -9 -8 -8 -7 -6 -6 -6 -6 -5 -5 -5 -5 ------- Run | Yrd Mat Min Mat Min Exi Min Mat Fac Fac Low Low Dat Pro Fac Upp Upp Combat Hostiles Destroyed 82 | . 9 . 28 4 . . 15 1 . . . . 9 10 6 . Melee 1 | . . . 1 . . . . . . . . . . . . . Guns 52 | . 9 . 20 4 . . 15 1 . . . . 1 2 . . AOE 29 | . . . 7 . . . . . . . . . 8 8 6 . Classes Destroyed 17 | . 6 . 4 . . . 3 1 . . . . 1 2 . . Worker 6 | . 1 . 2 . . . 2 . 1 . . . . . . . Builder 4 | . . . 1 . . . . . 1 . . . 1 1 . . Tunneler 2 | . . . 1 . . . . . 1 . . . . . . . Hauler 10 | . 2 . 4 . . . 1 . . . . . . 3 . . Recycler 6 | . 1 . 2 . . . 2 . . . . . 1 . . . Mechanic 2 | . . . . . . . 1 . . . . . . 1 . . Operator 3 | . . . 1 . . . 1 . . . . . . 1 . . Watcher 13 | . 1 . 5 . . . 1 1 2 . . . . 3 . . Swarmer 34 | . 3 . 12 4 . . 6 . . . . . 5 . 4 . Saboteur 2 | . . . . . . . . . . . . . . 2 . . Grunt 33 | . 6 . 11 . . . 6 . . . . . 2 6 2 . Brawler 1 | . . . . . . . 1 . . . . . . . . . Duelist 1 | . . . . . . . 1 . . . . . . . . . Sentry 7 | . . . 5 . . . 1 . . . . . 1 . . . Hunter 1 | . . . . . . . . . . . . . . 1 . . Programmer 2 | . . . . . . . . 1 . . . . . 1 . . Behemoth 1 | . . . . . . . . . . . . . 1 . . . Best Kill Streak 9 | . 5 . 9 4 . . 6 1 2 . . . 5 6 2 . Combat Bots Only 7 | . 5 . 7 4 . . 6 1 . . . . 4 5 2 . Max Kills in Single Turn 4 | . 2 . 3 1 . . 2 1 1 . . . 2 4 1 . Gunslinging 1 | . 1 . . . . . 1 . . . . . . . . . Exploded 3 | . . . 3 . . . . . . . . . 2 3 1 . Melee 1 | . . . 1 . . . . . . . . . . . . . Uniques/NPCs Destroyed . | . . . . . . . . . . . . . . . . . Combat | -11 -10 -10 -9 -9 -9 -8 -8 -7 -6 -6 -6 -6 -5 -5 -5 -5 -------- Run | Yrd Mat Min Mat Min Exi Min Mat Fac Fac Low Low Dat Pro Fac Upp Upp Hostile Shots Fired 697 | . 62 7 184 20 . . 49 38 32 13 3 . 51 92 108 38 Missed 250 | . 15 2 50 6 . . 13 19 20 6 1 . 27 38 43 10 Damage Taken 5210 | . 386 32 1433 82 . . 333 206 100 70 27 . 326 894 981 340 Core 1474 | . 50 7 260 . . . 48 46 4 . 14 . 38 299 442 266 Absorbed by Shields 314 | . . . 116 . . . 104 . . . . . . 48 46 . Ignored by Resistances 1504 | . 116 11 364 28 . . 127 61 29 22 8 . 91 261 288 98 Regen/Repaired (Parts) 55 | . . . . . . . . 55 . . . . . . . . Core Remaining (%) 81 | 100 . 77 . . . 35 91 93 . . . . 93 . . . Volleys Fired 322 | . 46 1 113 5 . . 51 15 11 1 . . 26 38 10 5 Largest 2 | . 2 2 2 2 . . 2 1 1 1 . . 1 2 1 1 Hottest 89 | . 80 80 80 46 . . 46 69 60 60 . . 60 89 46 72 Shots Fired 512 | . 92 2 196 11 . . 93 15 11 1 . . 26 51 10 4 Gun 466 | . 92 2 189 11 . . 93 12 11 1 . . 7 44 . 4 Cannon 3 | . . . . . . . . 3 . . . . . . . . Launcher 43 | . . . 7 . . . . . . . . . 19 7 10 . Special . | . . . . . . . . . . . . . . . . . Kinetic 363 | . 88 . 159 11 . . 93 12 . . . . . . . . Thermal 64 | . 4 2 30 . . . . . . . . . . 24 . 4 Explosive 43 | . . . 7 . . . . . . . . . 19 7 10 . Electromagnetic 42 | . . . . . . . . 3 11 1 . . 7 20 . . Robot Hit Streak 31 | . 28 4 30 8 . . 22 13 2 3 . . 8 20 30 31 Robot Miss Streak 4 | . 2 . 4 1 . . 3 1 1 . . . 2 1 . 1 Penetration Max . | . . . . . . . . . . . . . . . . . Secondary Targets 9 | . 1 . 4 . . . 4 . . . . . . . . . Max Gunslinging Chain 1 | . 1 . 1 . . . 1 . . . . . . . . . Shots Hit Robots 413 | . 76 2 150 8 . . 71 17 8 9 3 . 13 43 10 3 Core Hits 218 | . 24 1 78 4 . . 35 3 5 . . . 19 37 8 4 Critical Kills 2 | . . . 1 . . . 1 . . . . . . . . . Critical Parts Destroyed 2 | . . . 1 . . . . 1 . . . . . . . . Critical Strikes 9 | . . . 2 . . . 1 1 . . . . . 4 . 1 Burn 3 | . . . . . . . . . . . . . . 2 . 1 Destroy 4 | . . . 2 . . . 1 1 . . . . . . . . Corrupt 2 | . . . . . . . . . . . . . . 2 . . Melee Attacks 17 | . . . . . . . . 3 1 8 3 . 2 . . . Impact . | . . . . . . . . . . . . . . . . . Slashing . | . . . . . . . . . . . . . . . . . Piercing . | . . . . . . . . . . . . . . . . . Sneak Attacks 7 | . . . . . . . . 3 1 3 . . . . . . Combat Hostiles . | . . . . . . . . . . . . . . . . . Follow-up Attacks . | . . . . . . . . . . . . . . . . . Damage Inflicted 11416 | . 948 22 2327 113 . . 1117 373 258 25 . . 2172 2919 1031 111 Guns 5488 | . 946 22 1605 113 . . 1117 238 258 25 . . 81 989 . 94 Cannons 96 | . . . . . . . . 96 . . . . . . . . Explosions 5768 | . . . 677 . . . . 39 . . . . 2091 1930 1031 . Melee . | . . . . . . . . . . . . . . . . . Ramming 64 | . 2 . 45 . . . . . . . . . . . . 17 Kinetic 3762 | . 934 . 1360 113 . . 1117 238 . . . . . . . . Thermal 1145 | . 12 22 427 . . . . 39 . . . . . 551 . 94 Explosive 5498 | . . . 495 . . . . . . . . . 2091 1881 1031 . Electromagnetic 947 | . . . . . . . . 96 258 25 . . 81 487 . . Impact . | . . . . . . . . . . . . . . . . . Slashing . | . . . . . . . . . . . . . . . . . Piercing . | . . . . . . . . . . . . . . . . . Highest Corruption 9 | . . . 9 9 9 9 . 2 1 1 1 1 5 2 2 2 Average Corruption 3 | . . . 5 9 9 9 . 1 1 1 1 1 1 1 2 2 Corruption Purged . | . . . . . . . . . . . . . . . . . Corruption Blocked . | . . . . . . . . . . . . . . . . . Effects 93 | . . . 35 8 7 1 . 3 1 3 1 . 7 1 24 2 Message Errors 22 | . . . 7 . 1 . . 1 1 . 1 . 4 . 6 1 Matter Fused 30 | . . . 7 3 4 1 . 1 . 1 . . 1 1 10 1 Heat Flow Errors 10 | . . . 3 1 . . . 1 . 2 . . . . 3 . Energy Discharges 10 | . . . 5 3 1 . . . . . . . . . 1 . Parts Rejected 2 | . . . 1 . . . . . . . . . . . 1 . Parts Fused 2 | . . . 1 . 1 . . . . . . . . . . . Data Loss (minor) 8 | . . . 5 . . . . . . . . . 1 . 2 . Misfires 3 | . . . 2 1 . . . . . . . . . . . . Alerts 3 | . . . 1 . . . . . . . . . 1 . 1 . Weapon Failures 3 | . . . 3 . . . . . . . . . . . . . Overload Shots 2 | . . . . . . . . . . . . . . . . 2 Effects 1 | . . . . . . . . . . . . . . . . 1 Energy Bleed 1 | . . . . . . . . . . . . . . . . 1 Overflow Damage 217 | . . . 70 . . . . 13 . . . . 95 39 . . Projectiles 13 | . . . . . . . . 13 . . . . . . . . Explosions 204 | . . . 70 . . . . . . . . . 95 39 . . Melee . | . . . . . . . . . . . . . . . . . Knockbacks . | . . . . . . . . . . . . . . . . . Impact . | . . . . . . . . . . . . . . . . . Kinetic . | . . . . . . . . . . . . . . . . . Secondary . | . . . . . . . . . . . . . . . . . Self-Inflicted Damage 166 | . . . 56 . . . . 14 . . . . 23 66 . 7 Shots 8 | . . . 4 . . . . 1 . . . . 2 1 . . Rammed 24 | . . . 19 . . . . . . . . . . . . 5 Targets Rammed 25 | . 1 . 19 . . . . . . . . . . . . 5 Kicked 1 | . 1 . . . . . . . . . . . . . . . Crushed . | . . . . . . . . . . . . . . . . . Highest Temperature 274 | . 42 31 274 246 . . 202 268 246 225 . . . 100 193 . Average Temperature 64 | . 9 21 51 131 . . 55 75 96 110 . . . 33 91 . Received Heat Transfer 1610 | . 219 9 516 . . . 152 33 42 63 . . 45 160 371 . Effects 6 | . . . . . . . . 3 3 . . . . . . . Interference 6 | . . . . . . . . 3 3 . . . . . . . Siege Activations . | . . . . . . . . . . . . . . . . . Robots Corrupted 1 | . . . . . . . . . . . . . . 1 . . Combat Hostiles . | . . . . . . . . . . . . . . . . . Parts Fried 9 | . . . . . . . . 3 2 . . . . 4 . . Impact Corruptions . | . . . . . . . . . . . . . . . . . Robots Melted . | . . . . . . . . . . . . . . . . . Combat Hostiles . | . . . . . . . . . . . . . . . . . Parts Melted 4 | . . . 1 . . . . . . . . . . 3 . . Heat Transferred 2405 | . 25 50 750 . . . . . . . . . . 1300 . 280 Parts Sabotaged . | . . . . . . . . . . . . . . . . . Parts Stolen . | . . . . . . . . . . . . . . . . . Parts Stripped . | . . . . . . . . . . . . . . . . . Power Chain Reactions 1 | . . . . . . . . 1 . . . . . . . . Alert | -11 -10 -10 -9 -9 -9 -8 -8 -7 -6 -6 -6 -6 -5 -5 -5 -5 ------- Run | Yrd Mat Min Mat Min Exi Min Mat Fac Fac Low Low Dat Pro Fac Upp Upp Peak Influence 618 | . 248 194 513 194 . . 305 151 255 . . . . 618 . . Initial 114 | . . 28 63 114 . . . . 49 . . . . 71 . . Average 144 | . 97 136 266 186 . . 97 59 131 . . . . 212 . . Maximum Alert Level 2 | . 1 . 2 . . . 1 . 1 . . . . 2 . . Low Security (%) 73 | 100 81 100 28 100 . 100 88 100 81 . . . . 52 . . Level 1 23 | . 18 . 66 . . . 11 . 18 . . . . 33 . . Level 2 2 | . . . 4 . . . . . . . . . . 13 . . Level 3 . | . . . . . . . . . . . . . . . . . Level 4 . | . . . . . . . . . . . . . . . . . Level 5 . | . . . . . . . . . . . . . . . . . High Security . | . . . . . . . . . . . . . . . . . Max Security . | . . . . . . . . . . . . . . . . . Squads Dispatched 16 | . 1 . 3 . . . . 4 3 . . . . 5 . . Investigation 9 | . 1 . 1 . . . . 3 3 . . . . 1 . . Extermination 2 | . . . . . . . . 1 . . . . . 1 . . Reinforcement 3 | . . . 2 . . . . . . . . . . 1 . . Assault 2 | . . . . . . . . . . . . . . 2 . . Garrison . | . . . . . . . . . . . . . . . . . Intercept . | . . . . . . . . . . . . . . . . . Searches Triggered . | . . . . . . . . . . . . . . . . . Data Miner Redirects 1 | . . . . . . . . . . . . . . 1 . . Construction Impeded . | . . . . . . . . . . . . . . . . . Haulers Reinforced 1 | . . . . . . . . . . . . . . 1 . . Active Scanning Responses . | . . . . . . . . . . . . . . . . . Cargo Convoy Interrupts . | . . . . . . . . . . . . . . . . . Stealth | -11 -10 -10 -9 -9 -9 -8 -8 -7 -6 -6 -6 -6 -5 -5 -5 -5 --------- Run | Yrd Mat Min Mat Min Exi Min Mat Fac Fac Low Low Dat Pro Fac Upp Upp Distress Signals 3 | . . . 3 . . . . . . . . . . . . . Communications Jammed 16 | . . . . . . . . . . . . . 2 14 . . Distress Signals 13 | . . . . . . . . . . . . . 2 11 . . Times Spotted 216 | . 10 7 46 4 . . 24 13 11 8 1 . 14 42 30 6 Peak Tracking Total 13 | . 6 5 7 4 . . 7 3 3 4 1 . 6 12 13 4 Tactical Retreats 44 | . . 3 2 . . . 2 6 9 4 1 . 2 7 7 1 Traps | -11 -10 -10 -9 -9 -9 -8 -8 -7 -6 -6 -6 -6 -5 -5 -5 -5 ------- Run | Yrd Mat Min Mat Min Exi Min Mat Fac Fac Low Low Dat Pro Fac Upp Upp Traps Triggered 10 | . . . 1 . . . . 2 2 . . . 2 3 . . Indirectly . | . . . . . . . . . . . . . . . . . Trap Hack Attempts . | . . . . . . . . . . . . . . . . . Triggered . | . . . . . . . . . . . . . . . . . Disarmed 10 | . 6 . . . . . 4 . . . . . . . . . Reprogrammed 6 | . . . . . . . . 4 2 . . . . . . . Reused 1 | . . . . . . . . 1 . . . . . . . . Traps Extracted . | . . . . . . . . . . . . . . . . . Installed . | . . . . . . . . . . . . . . . . . Triggered 6 | . . . . . . . . 1 . . . . . 1 4 . Machines | -11 -10 -10 -9 -9 -9 -8 -8 -7 -6 -6 -6 -6 -5 -5 -5 -5 ---------- Run | Yrd Mat Min Mat Min Exi Min Mat Fac Fac Low Low Dat Pro Fac Upp Upp Machines Disabled 9 | . . . 2 . . . . . . . . . . 7 . . Max in Single Turn 4 | . . . 1 . . . . . . . . . . 4 . . Garrison Access 2 | . . . . . . . 1 1 . . . . . . . . Machines Repaired . | . . . . . . . . . . . . . . . . . Machines Dismantled . | . . . . . . . . . . . . . . . . . Machines Sabotaged . | . . . . . . . . . . . . . . . . . Overloaded Fab Kills . | . . . . . . . . . . . . . . . . . Hacking | -11 -10 -10 -9 -9 -9 -8 -8 -7 -6 -6 -6 -6 -5 -5 -5 -5 --------- Run | Yrd Mat Min Mat Min Exi Min Mat Fac Fac Low Low Dat Pro Fac Upp Upp Machines Accessed 45 | . 5 . 4 . 1 . 5 7 7 1 . 4 2 7 2 . Terminals 22 | . 4 . 4 . . . 4 2 4 . . . 1 3 . . Fabricators 2 | . . . . . . . . 1 . . . . . 1 . . Repair Stations 2 | . . . . . . . . 2 . . . . . . . . Recycling Units 6 | . 1 . . . . . . . 2 . . . 1 2 . . Scanalyzers 2 | . . . . . . . . 1 . . . . . 1 . . Garrison Access 3 | . . . . . . . 1 1 1 . . . . . . . Total Hacks 149 | . 12 . 6 . 23 . 9 23 23 1 . 31 2 14 5 . Successful 119 | . 7 . 4 . 23 . 7 17 13 1 . 31 2 9 5 . Failed 30 | . 5 . 2 . . . 2 6 10 . . . . 5 . . Catastrophic 2 | . . . . . . . . . 1 . . . . 1 . . Database Lockouts . | . . . . . . . . . . . . . . . . . Manual 12 | . . . 3 . 2 . 3 . . . . . 1 3 . . Terminals 48 | . 9 . 6 . . . 7 6 12 . . . 1 7 . . Fabricators 6 | . . . . . . . . 3 . . . . . 3 . . Repair Stations 9 | . . . . . . . . 9 . . . . . . . . Recycling Units 13 | . 3 . . . . . . . 7 . . . 1 2 . . Scanalyzers 5 | . . . . . . . . 3 . . . . . 2 . . Garrison Access 8 | . . . . . . . 2 2 4 . . . . . . . Terminal Hacks 90 | . 5 . 4 . 23 . 6 4 7 1 . 31 1 3 5 . Record 44 | . . . . . 23 . 1 1 2 . . 11 . 2 4 . Part Schematic 12 | . . . . . . . . . 1 . . 11 . . . . Robot Schematic 6 | . . . . . . . . . . . . 6 . . . . Robot Analysis 1 | . 1 . . . . . . . . . . . . . . . Prototype ID Bank 5 | . 1 . . . . . . . 1 . . 3 . . . . Open Door 3 | . . . . . . . . . . 1 . . 1 . 1 . Branch Access Points 1 | . . . . . . . . . 1 . . . . . . . Emergency Access Points 1 | . 1 . . . . . . . . . . . . . . . Locate Traps 7 | . 1 . 3 . . . 2 1 . . . . . . . . Disarm Traps 2 | . 1 . . . . . 1 . . . . . . . . . Reprogram Traps 5 | . . . 1 . . . 1 1 1 . . . . 1 . . Dispatch Records 2 | . . . . . . . 1 1 . . . . . . . . Security Status 1 | . . . . . . . . . 1 . . . . . . . Fabricator Hacks 5 | . . . . . . . . 3 . . . . . 2 . . Network Status 1 | . . . . . . . . 1 . . . . . . . . Load Schematic 2 | . . . . . . . . 1 . . . . . 1 . . Build 2 | . . . . . . . . 1 . . . . . 1 . . Repair Station Hacks 6 | . . . . . . . . 6 . . . . . . . . Scan Component 3 | . . . . . . . . 3 . . . . . . . . Repair 2 | . . . . . . . . 2 . . . . . . . . Refit 1 | . . . . . . . . 1 . . . . . . . . Recycling Unit Hacks 11 | . 2 . . . . . . . 6 . . . 1 2 . . Process 2 | . . . . . . . . . 2 . . . . . . . Report Inventory 6 | . 1 . . . . . . . 2 . . . 1 2 . . Retrieve Matter 2 | . . . . . . . . . 2 . . . . . . . Retrieve Components 1 | . 1 . . . . . . . . . . . . . . . Scanalyzer 5 | . . . . . . . . 3 . . . . . 2 . . Insert Component 2 | . . . . . . . . 1 . . . . . 1 . . Analyze 3 | . . . . . . . . 2 . . . . . 1 . . Garrison Access Hacks 2 | . . . . . . . 1 1 . . . . . . . . Seal Access 2 | . . . . . . . 1 1 . . . . . . . . Unauthorized Hacks . | . . . . . . . . . . . . . . . . . Terminals . | . . . . . . . . . . . . . . . . . Fabricators . | . . . . . . . . . . . . . . . . . Repair Stations . | . . . . . . . . . . . . . . . . . Recycling Units . | . . . . . . . . . . . . . . . . . Scanalyzers . | . . . . . . . . . . . . . . . . . Garrison Access . | . . . . . . . . . . . . . . . . . Data Cores Recovered 2 | . . . . . . . 1 . . . . . . 1 . . Used . | . . . . . . . . . . . . . . . . . Hacking Detections 24 | . 2 . 4 . . . 1 5 7 . . . . 5 . . Full Trace Events 8 | . 1 . . . . . . 3 3 . . . . 1 . . Feedback Events . | . . . . . . . . . . . . . . . . . Feedback Blocked . | . . . . . . . . . . . . . . . . . Robot Schematics Acquired 6 | . . . . . . . . . . . . 6 . . . . Robots Built . | . . . . . . . . . . . . . . . . . Authchips . | . . . . . . . . . . . . . . . . . Time . | . . . . . . . . . . . . . . . . . Total Robot Build Rating . | . . . . . . . . . . . . . . . . . Part Schematics Acquired 14 | . . . . . . . . 1 1 . . 11 . 1 . . Parts Built 3 | . . . . . . . . 2 . . . . . 1 . . Authchips . | . . . . . . . . . . . . . . . . . Time 177 | . . . . . . . . 84 . . . . . 93 . . Total Part Build Rating 15 | . . . . . . . . 8 . . . . . 7 . . Parts Repaired 2 | . . . . . . . . 2 . . . . . . . . Time 56 | . . . . . . . . 56 . . . . . . . . Parts Recycled . | . . . . . . . . . . . . . . . . . Recycled Matter 33 | . . . . . . . . . 33 . . . . . . . Retrieved Matter 6 | . . . . . . . . . 6 . . . . . . . Retrieved Components 5 | . 5 . . . . . . . . . . . . . . . Parts Scanalyzed 2 | . . . . . . . . 1 . . . . . 1 . . Part Schematics Acquired 2 | . . . . . . . . 1 . . . . . 1 . . Parts Damaged 1 | . . . . . . . . 1 . . . . . . . . Bothacking | -11 -10 -10 -9 -9 -9 -8 -8 -7 -6 -6 -6 -6 -5 -5 -5 -5 ------------ Run | Yrd Mat Min Mat Min Exi Min Mat Fac Fac Low Low Dat Pro Fac Upp Upp Used RIF Installer . | . . . . . . . . . . . . . . . . . Robots Hacked 5 | . . . . . . . . 2 1 2 . . . . . . Non-combat 5 | . . . . . . . . 2 1 2 . . . . . . Combat . | . . . . . . . . . . . . . . . . . Robot Hacks Applied 5 | . . . . . . . . 2 1 2 . . . . . . parse_system 3 | . . . . . . . . 1 . 2 . . . . . . no_distress 2 | . . . . . . . . 1 1 . . . . . . . Relay Couplers Released . | . . . . . . . . . . . . . . . . . Fabnet Peak Effective % . | . . . . . . . . . . . . . . . . . Robots Rewired . | . . . . . . . . . . . . . . . . . Allies Hacked . | . . . . . . . . . . . . . . . . . Hacks Repelled . | . . . . . . . . . . . . . . . . . Allies | -11 -10 -10 -9 -9 -9 -8 -8 -7 -6 -6 -6 -6 -5 -5 -5 -5 -------- Run | Yrd Mat Min Mat Min Exi Min Mat Fac Fac Low Low Dat Pro Fac Upp Upp Total Allies 5 | . . 3 . . . . . . . . . . . . 2 . Largest Group 3 | . . 3 . . . . . . . . . . . . 2 . Highest-Rated Group 50 | . . 40 . . . . . . . . . . . . 50 . Highest-Rated Ally 25 | . . 16 . . . . . . . . . . . . 25 . Total Orders . | . . . . . . . . . . . . . . . . . Ally Attacks 22 | . . 10 . . . . . . . . . . . . 12 . Total Damage 385 | . . 67 . . . . . . . . . . . . 318 . Kills 3 | . . 2 . . . . . . . . . . . . 1 . Allies Corrupted . | . . . . . . . . . . . . . . . . . Allies Melted . | . . . . . . . . . . . . . . . . . Intel | -11 -10 -10 -9 -9 -9 -8 -8 -7 -6 -6 -6 -6 -5 -5 -5 -5 ------- Run | Yrd Mat Min Mat Min Exi Min Mat Fac Fac Low Low Dat Pro Fac Upp Upp Robot Analysis Total 1 | . 1 . . . . . . . . . . . . . . . Derelict Logs Recovered 7 | . . 2 . . . . . . . . 1 . 2 . 1 1 Drone Launches . | . . . . . . . . . . . . . . . . . Drone Recoveries . | . . . . . . . . . . . . . . . . . Decoded 0b10 Intel 10 | . . . . . . . . . . . . . . 10 . . Traps 10 | . . . . . . . . . . . . . . 10 . . Exploration | -11 -10 -10 -9 -9 -9 -8 -8 -7 -6 -6 -6 -6 -5 -5 -5 -5 ------------- Run | Yrd Mat Min Mat Min Exi Min Mat Fac Fac Low Low Dat Pro Fac Upp Upp Turns Passed 9654 | 68 596 258 1408 236 214 45 1629 1155 442 226 233 24 536 640 1900 44 Spaces Moved 12343 | 49 576 583 1226 173 179 38 833 1802 1194 607 779 89 1407 1371 1391 46 Core 1256 | 6 . . 25 . . . . . . . . . . . 1179 46 Treads . | . . . . . . . . . . . . . . . . . Legs 249 | 43 206 . . . . . . . . . . . . . . . Wheels 204 | . . . 121 . . . 83 . . . . . . . . . Hover 1270 | . . . 695 173 179 38 185 . . . . . . . . . Flight 9364 | . 370 583 385 . . . 565 1802 1194 607 779 89 1407 1371 212 . Fastest Speed 27 | 50 40 40 37 116 120 120 32 29 28 28 27 27 27 31 37 50 Average Speed 53 | 111 69 40 68 119 120 120 70 30 28 28 27 27 28 31 134 53 Slowest Speed 300 | 120 120 40 245 120 120 120 180 32 31 28 28 27 101 37 300 100 Overloaded Moves 560 | . . . . . . . . . . . . . . 348 212 . Propulsion Burnouts 1 | . . . . . . . . . . . . . . . 1 . Robots Hopped 59 | . 9 3 5 . . . 2 16 3 . . . 1 20 . . Cave-ins Triggered 1 | . . . 1 . . . . . . . . . . . . . Exploration Rate (%) 49 | 3 67 98 61 26 56 11 43 19 27 67 79 74 85 31 86 5 Regions Visited 16 Branch Regions 10 Pre-discovered Areas 5 | . . 1 . 1 1 . . . . . . 1 1 . . . Known Exits Taken 2 | . . . . . . . . . 1 . . . . . 1 . Unknown Exits Taken 14 | 1 1 1 1 1 1 1 1 1 . 1 1 1 1 1 . . Scrap Searched 13 | . . 3 . 1 . . . . . 1 3 . 3 . 2 . Spaces Dug 10 | . . . 10 . . . . . . . . . . . . . Terrain Destroyed 417 | . . . 81 . . . . 4 . . . . 112 115 105 . Melee . | . . . . . . . . . . . . . . . . . Projectile . | . . . . . . . . . . . . . . . . . AOE 417 | . . . 81 . . . . 4 . . . . 112 115 105 . Terrain Rammed . | . . . . . . . . . . . . . . . . . Walls Destroyed . | . . . . . . . . . . . . . . . . . Machines Disabled . | . . . . . . . . . . . . . . . . . Actions | -11 -10 -10 -9 -9 -9 -8 -8 -7 -6 -6 -6 -6 -5 -5 -5 -5 --------- Run | Yrd Mat Min Mat Min Exi Min Mat Fac Fac Low Low Dat Pro Fac Upp Upp Total 14861 | 62 670 602 1621 191 178 37 1787 2380 1281 660 798 88 1519 1515 1411 61 Wait 1696 | . 22 20 157 13 . . 834 502 29 44 11 . 12 46 2 4 Move 12215 | 48 557 576 1215 172 178 37 829 1771 1187 606 778 88 1404 1333 1390 46 Hop 53 | . 9 3 5 . . . 1 14 3 . . . 1 17 . . Pick Up 153 | 7 15 1 42 . . . 19 20 18 . 2 . 14 11 4 . Fast Attach . | . . . . . . . . . . . . . . . . . Attach 101 | 6 5 . 29 . . . 16 7 7 . 1 . 11 14 4 1 Detach 30 | . . . 5 . . . 7 2 1 . . . 6 9 . . Swap 81 | 1 7 . 16 1 . . 17 12 9 1 2 . 10 5 . . Drop 96 | . 8 1 20 . . . 13 16 15 . 1 . 15 6 1 . Fire 322 | . 46 1 113 5 . . 51 15 11 1 . . 26 38 10 5 Melee 17 | . . . . . . . . 3 1 8 3 . 2 . . . Ram 24 | . . . 19 . . . . . . . . . . . . 5 Kick 1 | . 1 . . . . . . . . . . . . . . . Crush . | . . . . . . . . . . . . . . . . . Escape Stasis 72 | . . . . . . . . 18 . . . . 18 36 . . Rewire . | . . . . . . . . . . . . . . . . . Trap . | . . . . . . . . . . . . . . . . . Miscellaneous . | . . . . . . . . . . . . . . . . . Route ------- -11/Scrapyard -10/Materials (discovered 4 exits: *Mat x3 / [*Min]) -10/Mines (discovered 2 exits: *Mat x2) -9/Materials (discovered 2 exits: [*Min x2]) -9/Mines (discovered 2 exits: *Mat / *Exi) -9/Exiles (discovered 2 exits: [*Min x2]) -8/Mines -8/Materials -7/Factory (discovered 3 exits: *Fac x2 / [*Sto]) -6/Factory (discovered 6 exits: *Fac x2 / *Low x2 / Ext x2) -6/Lower Caves -6/Lower Caves (discovered 2 exits: *Fac / *Dat) -6/Data Miner -5/Proximity Caves -5/Factory (discovered 3 exits: *Fac / *Upp x2) -5/Upper Caves -5/Upper Caves (discovered 1 exit: Fac) History --------- Turn | Location | Event 3 | -11/Scrapyard | Discovered new exit (range 15) 69 | -11/Scrapyard | Entered Materials 147 | -10/Materials | Discovered new exit (range 15) 317 | -10/Materials | Build established: Mutant 419 | -10/Materials | Discovered new exit (range 13) 632 | -10/Materials | Discovered new exit (range 16) 662 | -10/Materials | Discovered new exit (range 7) 665 | -10/Materials | Entered Mines 685 | -10/Mines | Learned location of Zion (-7) 699 | -10/Mines | Found a damaged Exp. Sensor Array with a note attached 700 | -10/Mines | Found Prototype Device 759 | -10/Mines | Build established: Scavenger-Mutant 794 | -10/Mines | Learned Materials emergency access door positions 805 | -10/Mines | Discovered new exit (range 9) 837 | -10/Mines | Discovered new exit (range 9) 864 | -10/Mines | Assisted by bots powering up and referring to "LRC-V3" 923 | -10/Mines | Entered Materials 923 | -9/Materials | Evolved 2 slots: Utility x2 923 | -9/Materials | Discovered new exit (range 14) 1091 | -9/Materials | Lost 9 parts (2p1n3u3w) 1699 | -9/Materials | Core integrity fell below 50% 1705 | -9/Materials | Crushed by falling debris 1736 | -9/Materials | Lost 5 parts (2n2u1w) 1895 | -9/Materials | Destroyed 7 combat bots 1962 | -9/Materials | Discovered new exit (range 14) 2331 | -9/Materials | Entered Mines 2332 | -9/Mines | Learned location of Storage (-7) 2377 | -9/Mines | Discovered new exit (range 13) 2559 | -9/Mines | Deemed a non-threat by the Exiles lab entrance 2560 | -9/Mines | Discovered new exit (range 5) 2567 | -9/Mines | Entered Exiles 2585 | -9/Exiles | Discovered new exit (range 16) 2599 | -9/Exiles | Met 8R-AWN 2618 | -9/Exiles | Met EX-HEX 2656 | -9/Exiles | Build established: Mutant 2662 | -9/Exiles | Met EX-DEC 2763 | -9/Exiles | Discovered new exit (range 17) 2781 | -9/Exiles | Entered Mines 2821 | -8/Mines | Discovered new exit (range 3) 2826 | -8/Mines | Entered Materials 2826 | -8/Materials | Evolved 2 slots: Power x1, Utility x1 3136 | -8/Materials | Build established: Hacker-Mutant 3958 | -8/Materials | Build established: Hacker-Sprinter 4397 | -8/Materials | Discovered new exit (range 8) 4455 | -8/Materials | Entered Factory 4455 | -7/Factory | Evolved 2 slots: Propulsion x2 4478 | -7/Factory | Discovered new exit (range 6) 4673 | -7/Factory | Fabricated Xenon Bombardment Thruster? 5045 | -7/Factory | Repaired Broken Lgt. Nuclear Core 5118 | -7/Factory | Discovered new exit (range 5) 5119 | -7/Factory | Repaired Broken Xenon Bombardment Thruster? 5589 | -7/Factory | Discovered new exit (range 12) 5610 | -7/Factory | Entered another Factory area 5610 | -6/Factory | Evolved 2 slots: Propulsion x1, Utility x1 5619 | -6/Factory | Discovered new exit (range 14) 5850 | -6/Factory | Discovered new exit (range 9) 5969 | -6/Factory | Identified exit to Lower Caves 5969 | -6/Factory | Identified exit to Extension 5983 | -6/Factory | Discovered new exit (range 17) 6052 | -6/Factory | Entered Lower Caves 6153 | -6/Lower Caves | Attracted the attention of an 0b10 checkpoint 6264 | -6/Lower Caves | Discovered new exit (range 6) 6278 | -6/Lower Caves | Entered another Lower Caves area 6324 | -6/Lower Caves | Discovered new exit (range 4) 6447 | -6/Lower Caves | Learned Factory emergency access door positions 6470 | -6/Lower Caves | Discovered new exit (range 18) 6511 | -6/Lower Caves | Entered Data Miner 6511 | -6/Data Miner | Discovered new exit (range 6) 6516 | -6/Data Miner | Met Data Miner 6523 | -6/Data Miner | Learned location of Section 7 (-2) 6523 | -6/Data Miner | Acquired the access code to Warlord's prototype stash 6527 | -6/Data Miner | Received God Mode back door access code from Data Miner 6535 | -6/Data Miner | Entered Proximity Caves 6539 | -5/Proximity Caves | Attracted the attention of an 0b10 checkpoint 6560 | -5/Proximity Caves | Unaware initiated a cargo recovery operation 6603 | -5/Proximity Caves | Encountered a Derelict guarding a broken Freighter 6609 | -5/Proximity Caves | Learned 4 Factory zone layouts 6625 | -5/Proximity Caves | Found Prototype Device 6626 | -5/Proximity Caves | Identified Adv. Kinecellerator 6630 | -5/Proximity Caves | Found Prototype Device 6631 | -5/Proximity Caves | Identified Exp. Transmission Jammer 6637 | -5/Proximity Caves | Found Prototype Launcher 6639 | -5/Proximity Caves | Identified Gui. Micro-nuke Launcher 6802 | -5/Proximity Caves | Spotted B-75 Beast 6865 | -5/Proximity Caves | Destroyed B-75 Beast 6897 | -5/Proximity Caves | Entered a huge 0b10 base via the front door 6994 | -5/Proximity Caves | Learned location of Warlord (-4) 7061 | -5/Proximity Caves | Discovered new exit (range 22) 7071 | -5/Proximity Caves | Entered Factory 7071 | -5/Factory | Evolved 2 slots: Propulsion x1, Utility x1 7245 | -5/Factory | Spotted B-75 Beast 7386 | -5/Factory | Build established: Infiltrator-Sprinter 7444 | -5/Factory | Discovered new exit (range 22) 7457 | -5/Factory | Fabricated Cld. Field Propulsion Drive? 7457 | -5/Factory | Discovered new exit (range 4) 7671 | -5/Factory | First assault squad dispatched 7682 | -5/Factory | P-70 Sage assimilated allied ZG-655(h) 7699 | -5/Factory | Incoming assault squad redirected 7703 | -5/Factory | Discovered new exit (range 15) 7711 | -5/Factory | Entered Upper Caves 7727 | -5/Upper Caves | Lost 5 parts (2p1n1u1w) 7727 | -5/Upper Caves | Identified exit to Upper Caves 7733 | -5/Upper Caves | A Commander dispatched an escort 7741 | -5/Upper Caves | Learned Research trap positions 8211 | -5/Upper Caves | Build established: Hacker-Mutant 8820 | -5/Upper Caves | Lost 5 parts (1p4u) 9593 | -5/Upper Caves | Attracted the attention of an 0b10 outpost 9593 | -5/Upper Caves | Core integrity fell below 50% 9611 | -5/Upper Caves | Entered another Upper Caves area 9612 | -5/Upper Caves | Identified exit to Factory 9636 | -5/Upper Caves | Core integrity fell below 20% 9655 | -5/Upper Caves | Destroyed by S-27 Virus with Autogun Last Messages --------------- System corrupted: Matter fused (-8). S-27 Virus suffers critical hit (Burn). J ER=|R=GVIJPEAO/P:AXARI6 NESNJ0PY/Z6D Overload: Energy bleed (-15). S-27 Virus heat damages VTOL Module, VTOL Module. Destroyed VTOL Module. S-27 Virus overheating. S-27 Virus heat damages Lgt. Nuclear Core. S-27 Virus overheating. S-27 Virus heat spikes uncontrollably. S-27 Virus overheating. Critical hit (Destroy). Cld. Plasma Rifle destroyed. S-27 Virus overheating. Slammed into S-27 Virus. S-27 Virus overheating. Slammed into S-27 Virus. S-27 Virus overheating. Slammed into S-27 Virus. [Achievement: 10k Club] Map ----- +----------------------------------------------------+ | | | | | | | | | | | | | ?????????????????????????????????????????????????? | | ?????????????????????????????????????????????????? | | ?????????????????????????????????????????????????? | | ?????????????????????????????????????????????????? | | ?????????????????????????????????????????????????? | | ?????????????????????????????????????????????????? | | ?????????????????????????????????????????????????? | | ?????????????????????????????????????????????????? | | ?????????????????????????????????????????????????? | | ?????????????????????????????????????????????????? | | ??????????????#######????????????????????????????? | | ??????????????#"""""#????????????????????????????? | | ??????????????#"""""#????????????????????????????? | | ??????????????#"""""#????????????????????????????? | | ???????????????# #######????###????????????????? | | ???????????##### ## ##### #????????????????? | | ??????????## ## #????????????????? | | ??????????# #????????????????? | | ??????????# ### ss ###????????????????? | | ?????????# #?## s @ ####??????????????????? | | ????????# ??## s ##?????????????????????? | | ??????? ???## ##??????????????????????? | | ????? ???## ####???????????????????????? | | ????"""" ### ##??????????????????????????? | | ???"" """ #???????????????????????????? | | ??? """ #???????????????????????????? | | ???"? """ # #######???????????????????????????? | | ???????" ## ##?????????????????????????????????? | | ??????? ?? ??????????????????????????????????? | | ??????? ?? ??????????????????????????????????? | | ??????? #?? ??????????????????????????????????? | | ?????? ??? ??????????????????????????????????? | | ????????#??? ??????????????????????????????????? | | ???????????? ??????????????????????????????????? | | ?????????????????????????????????????????????????? | | ?????????????????????????????????????????????????? | | ?????????????????????????????????????????????????? | | ?????????????????????????????????????????????????? | | ?????????????????????????????????????????????????? | | ?????????????????????????????????????????????????? | | ?????????????????????????????????????????????????? | | ?????????????????????????????????????????????????? | | ?????????????????????????????????????????????????? | | ?????????????????????????????????????????????????? | +----------------------------------------------------+ Best States ------------- Heat Dissipation 67 Energy Generation 33 Energy Capacity 490 Matter Stores 300 Matter Capacity 300 Sight Range 22 Robot Scan Range 15 Terrain Scan Density 10 ECM Strength 1 Jamming Range 22 Additional Mass Support 6 Armor Coverage 225 Resistance: KI 20 Resistance: TH 20 Resistance: EX 20 Resistance: EM 20 Resistance: I 20 Resistance: S 20 Resistance: P 20 Evasion (%) 64 Offensive Hacking 20 Item Schematics ----------------- Xenon Bombardment Thruster | -7/Factory | Scanalyzed Cold Fusion Reactor | -6/Factory | Hacked Combat Drone Bay | -6/Data Miner | Free Lgt. Regenerative Plating | -6/Data Miner | Free Imp. Matter Compressor | -6/Data Miner | Free Enh. Armored Leg | -6/Data Miner | Free Enh. Coil Gun | -6/Data Miner | Free Imp. Force Field | -6/Data Miner | Free Imp. Gyrokinetic Inverter | -6/Data Miner | Free Force Lance | -6/Data Miner | Free Adv. Datajack | -6/Data Miner | Free Adv. Recalibrator | -6/Data Miner | Free Quantum Rifle | -6/Data Miner | Free Cld. Field Propulsion Drive | -5/Factory | Scanalyzed Robot Schematics ------------------ X-67 Chaingunner | -6/Data Miner | Free G-50 Soldier | -6/Data Miner | Free B-60 Warrior | -6/Data Miner | Free R-10 Processor | -6/Data Miner | Free G-67 Veteran | -6/Data Miner | Free Y-64 Sentinel | -6/Data Miner | Free Fabricated ------------ Xenon Bombardment Thruster | x2 | -7/Factory Cld. Field Propulsion Drive | x1 | -5/Factory Alien Tech Used ----------------- None Achievements -------------- 10k Club Explorer Just What I Needed Leap Before You Look Let's See Who's Tougher Oh No You Don't! Power Corrupts Significant Disruption The Oracle Total Silence Unlikely Earthworm Challenges ------------ None Game ------ Seed ScatterMultinovaModule Manual? 0 Play Time 03:07:26 Cumulative 8.5 hours Start 2024.04.05 @ 16:32:24 End 2024.04.05 @ 19:53:05 Sessions 1 Manual Loads 0 Difficulty Adventurer Special Mode None Game No. 7 Rogue 0 Adventurer 4 Explorer 3 Win Type - Total 0 Types 0/0/0/0/0/0/0/0/0 Lore% 13 Gallery% 14 Achievement% 15 Wizard Run 0 Options --------- Layout 1 ASCII 0 Keyboard 0 Movement Arrows Keybinds 0 Fullscreen 1 Font 16/SmallcapsGlow Map View 55x38 Zoom Use 0% Tactical HUD 0 Map Filters NONE Filters NONE Steam 1 RUN: 05014b37-b2e5-4e15-80ca-c3d9ca5683b3